{"text_format":"1","workbook":"xlsx","n_sheets":4,"sheets":["Dataset","Table","Data Table (one var)","Data Table(two var)"],"not_rendered":{"charts":0,"images":0,"macros":1,"external_links":0,"defined_names":1,"comments":0,"pivot_tables":0},"unopened":[],"bounds":{"document_bytes":16777216,"sheet_cells":100000,"rows_first":2000,"rows_last":500,"rows_between":2000,"halvings":0,"cell_chars":16384,"cell_head_chars":4096},"cells_cut":0,"cells_raw":0,"read":"whole","date_system":"1900"}

{"sheet":"Dataset","index":0,"n_rows":13,"n_cols":6,"rows_kept":13,"cut":false,"hidden":false,"merged":[[1,1,1,5]]}
[]
[null,"Basic Table"]
[]
[null,"Invoice No.","Salesperson","Product","Price ","Commision"]
[null,1,"John","TV",1000,{"$f":"(E5*12)/100","v":120}]
[null,2,"Jimmy","TV",900,108]
[null,3,"Hailee","Fridge",2000,240]
[null,4,"John","Mobile",200,24]
[null,5,"Kate","PC",800,96]
[null,6,"Hailee","Mobile",150,18]
[null,7,"William","Laptop",500,60]
[null,8,"Kate","PC",900,108]
[null,9,"Stacy","Tabloid",400,48]

{"sheet":"Table","index":1,"n_rows":13,"n_cols":6,"rows_kept":13,"cut":false,"hidden":false,"merged":[[1,1,1,5]]}
[]
[null,"Basic Table"]
[]
[null,"Invoice No.","Salesperson","Product","Price ","Commision"]
[null,1,"John","TV",1000,{"$f":"(E5*10)/100","v":100}]
[null,2,"Jimmy","TV",900,90]
[null,3,"Hailee","Fridge",2000,200]
[null,4,"John","Mobile",200,20]
[null,5,"Kate","PC",800,80]
[null,6,"Hailee","Mobile",150,15]
[null,7,"William","Laptop",500,50]
[null,8,"Kate","PC",900,90]
[null,9,"Stacy","Tabloid",400,40]

{"sheet":"Data Table (one var)","index":2,"n_rows":15,"n_cols":6,"rows_kept":15,"cut":false,"hidden":false,"merged":[[1,1,1,2],[6,4,6,5]]}
[]
[null,"Data Table with One Variable"]
[]
[null,"Product",2]
[null,"Price (Unit)",100]
[null,"Increase",0.1]
[null,"Total Price",{"$f":"(C4*C5)+(C5*C6)","v":210},null,"Practice"]
[]
[null,"Increase","Price",null,"Increase","Price"]
[null,"(Current)",{"$f":"C7","v":210},null,"(Current)",{"$f":"C7","v":210}]
[null,0.15,215,null,0.18]
[null,0.2,220,null,0.23]
[null,0.25,225,null,0.39]
[null,0.3,230,null,0.4]
[null,0.35,235,null,0.45]

{"sheet":"Data Table(two var)","index":3,"n_rows":14,"n_cols":15,"rows_kept":14,"cut":false,"hidden":false,"merged":[[10,0,13,0],[1,1,1,4],[8,2,8,5],[7,11,7,14],[9,9,12,9],[5,9,5,14]]}
[]
[null,"Data Table with Two Variable"]
[]
[null,"Product",2]
[null,"Price (Unit)",100]
[null,"Increase",0.1,null,null,null,null,null,null,"Practice"]
[null,"Total Price",{"$f":"(C4*C5)+(C5*C6)","v":210}]
[null,null,null,null,null,null,null,null,null,null,null,"No. of Products"]
[null,null,"No. of Products",null,null,null,null,null,null,null,{"$f":"C7","v":210},2,3,4,5]
[null,{"$f":"C7","v":210},2,3,4,5,null,null,null,"Increase",0.18]
["Increase",0.15,215,315,415,515,null,null,null,null,0.22]
[null,0.2,220,320,420,520,null,null,null,null,0.27]
[null,0.25,225,325,425,525,null,null,null,null,0.33]
[null,0.3,230,330,430,530]